bitfinex/quotes_ETHUSD_20220305
["timestamp","ask_amount","ask_price","bid_price","bid_amount"]
[1646488203086,0.85147449,2637.1,2636.6,0.00299447]
[1646488203285,3.8804,2637.4,2636.6,0.00299447]
[1646488203487,0.0029934,2637.5,2636.6,0.68669562]
[1646488203488,0.85135007,2637.3,2636.6,0.68669562]
[1646488203735,0.0029934,2637.5,2636.6,0.68669562]
[1646488203934,0.85139315,2637.6,2637.1,1.13733633]
[1646488204333,0.00299351,2637.5,2637.1,1.13733633]
[1646488204940,7.35692383,2638.4,2637.5,5.0]
[1646488205148,1.0,2638.6,2637.6,4.045]
[1646488205149,0.85151006,2638.3,2637.6,4.045]
[1646488205340,0.6885388,2638.6,2637.6,4.045]
[1646488205341,0.85151006,2638.6,2637.7,0.68380128]
[1646488205540,7.302e-05,2638.0,2637.9,11.91804755]
[1646488205741,7.302e-05,2638.0,2637.9,14.14684883]
[1646488205944,7.302e-05,2638.0,2637.9,14.13480128]
[1646488206445,0.3789,2638.7,2637.9,14.13480128]
[1646488206642,3.5,2639.3,2637.9,14.13480128]
[1646488206643,3.5,2639.3,2638.1,11.53]
[1646488206844,0.7732824,2639.2,2638.2,0.68380128]
[1646488207044,4.5645388,2639.5,2638.2,1.22880128]
[1646488207045,0.7732824,2639.1,2638.2,1.22880128]
[1646488207245,1.01751536,2639.3,2638.7,0.93368173]
[1646488207480,0.7732824,2639.2,2638.7,0.93368173]
[1646488207886,0.77230076,2639.2,2638.7,0.93368173]
[1646488208687,0.6885388,2639.9,2638.8,0.1123]
[1646488209290,1.16245179,2639.8,2639.2,1.08355729]
[1646488209489,1.16245179,2639.8,2638.7,0.1123]
[1646488209490,0.01127524,2638.9,2638.7,0.1123]
[1646488209689,0.01127524,2638.9,2638.8,1.40275442]
[1646488209890,0.01127524,2638.9,2638.8,1.02675442]
[1646488210393,0.01427448,2638.9,2638.8,1.02675442]
[1646488210590,0.01427448,2638.9,2638.8,1.51505442]
[1646488210792,0.01427448,2638.9,2638.8,13.04505442]
[1646488211225,0.01127524,2638.9,2638.8,13.04505442]
[1646488211527,0.01127524,2638.9,2638.8,16.54505442]
[1646488211926,0.01127524,2638.9,2638.8,18.09005442]
[1646488212532,0.01127524,2638.9,2638.8,6.18405442]
[1646488212729,0.01127524,2638.9,2638.8,17.71405442]
[1646488213132,0.01127524,2638.9,2638.8,17.60175442]
[1646488213330,0.01127524,2638.9,2638.8,17.97775442]
[1646488213331,7.524e-05,2638.9,2638.8,17.97775442]
[1646488213730,7.524e-05,2638.9,2638.8,16.951]
[1646488213929,0.00778528,2639.4,2639.1,0.376]
[1646488214130,8.528e-05,2639.4,2639.3,12.906]
[1646488214338,3.28025522,2640.5,2639.5,11.906]
[1646488214531,3.28025522,2640.5,2639.7,11.53]
[1646488214737,3.28025522,2640.5,2639.8,0.545]
[1646488214975,0.376,2641.0,2640.5,0.93984038]
[1646488214976,1.3602152,2641.0,2640.5,0.93984038]
[1646488215177,0.9842152,2641.0,2640.5,0.93984038]
[1646488215978,7.69916655,2641.1,2640.5,0.93984038]
[1646488216577,7.69916655,2641.1,2640.6,3.5]
[1646488216779,0.22916655,2641.1,2640.6,3.5]
[1646488217178,0.22916655,2641.1,2640.5,4.43984038]
[1646488217382,1.19414127,2640.9,2640.4,0.545]
[1646488217586,1.57014127,2640.9,2640.0,3.5]
[1646488217783,1.57014127,2640.9,2639.8,1.397]
[1646488217982,1.19414127,2640.9,2639.8,1.397]
[1646488218381,1.19414127,2640.9,2639.8,12.927]
[1646488218583,1.19414127,2640.9,2640.3,0.86626807]
[1646488218584,0.00193853,2640.5,2640.3,0.86626807]
[1646488218832,0.00193853,2640.5,2639.8,1.147]
[1646488219643,1.57014127,2640.9,2639.6,1.1364]
[1646488219837,0.94237758,2640.1,2639.5,1.12415651]
[1646488220035,1.17076205,2640.1,2639.5,1.12415651]
[1646488220436,1.54676205,2640.1,2639.2,1.4534]
[1646488220639,1.54676205,2640.1,2638.8,1.1558]
[1646488221040,1.54676205,2640.1,2638.7,0.3623]
[1646488221235,0.00300333,2639.9,2638.7,0.3623]
[1646488221436,0.00300333,2639.9,2638.7,1.20310634]
[1646488221437,1.18141212,2639.3,2638.7,1.20310634]
[1646488221635,0.22764308,2639.3,2638.7,1.20310634]
[1646488221836,0.00300333,2639.9,2638.7,1.20310634]
[1646488222036,0.60366634,2640.1,2638.8,3.5]
[1646488222479,0.60366634,2640.1,2638.9,0.376]
[1646488222480,0.00300319,2639.5,2638.9,0.376]
[1646488222686,0.00300319,2639.5,2639.1,1.21681069]
[1646488222885,0.00300319,2639.5,2639.2,3.5]
[1646488223284,1.14817845,2640.1,2639.2,3.5]
[1646488223485,1.1601893,2640.1,2639.6,1.01563118]
[1646488223687,1.1601893,2640.1,2639.3,0.1894]
[1646488223987,1.5361893,2640.1,2639.3,0.1894]
[1646488224185,1.5361893,2640.1,2639.2,0.1894]
[1646488224386,1.5361893,2640.1,2639.0,1.1949]
[1646488224586,1.52417845,2640.1,2639.0,1.1949]
[1646488225187,0.97140349,2639.3,2639.0,1.1949]
[1646488225386,1.644404,2639.3,2638.8,0.1894]
[1646488225586,1.644404,2639.3,2638.7,0.1894]
[1646488225786,1.644404,2639.3,2638.6,0.1894]
[1646488226756,1.644404,2639.3,2638.8,1.07842719]
[1646488226959,0.67300051,2639.3,2638.8,1.07842719]
[1646488227162,0.00290509,2639.5,2638.8,1.07842719]
[1646488227963,0.00290509,2639.5,2639.2,1.04255914]
[1646488228163,0.67264008,2639.5,2639.2,1.04255914]
[1646488228365,0.67554532,2639.5,2638.7,5.2842]
[1646488228563,0.67554532,2639.5,2638.7,15.575]
[1646488228762,0.67554532,2639.5,2638.7,12.075]
[1646488228963,0.67554532,2639.5,2638.8,0.1894]
[1646488229164,0.67554532,2639.5,2638.8,0.7344]
[1646488229368,0.67264008,2639.5,2639.0,1.11758353]
[1646488229565,0.67551601,2639.5,2639.0,1.11758353]
[1646488230577,0.67264008,2639.5,2639.0,1.11758353]
[1646488230781,0.67551612,2639.5,2639.0,1.11758353]
[1646488231179,0.67551612,2639.5,2639.1,0.545]
[1646488231783,1.04931705,2640.2,2639.1,0.545]
[1646488231980,0.00287608,2639.5,2639.1,0.545]
[1646488232483,0.00287608,2639.5,2639.1,0.7344]
[1646488232885,1.04931705,2640.2,2639.1,0.7344]
[1646488233085,1.04931705,2640.2,2639.6,0.00292217]
[1646488233284,0.01121468,2640.1,2639.6,0.00292217]
[1646488234161,1.04931705,2640.2,2639.6,0.00292217]
[1646488234361,0.00280425,2640.0,2639.6,0.99522604]
[1646488235362,1.07901108,2640.1,2639.6,0.99522604]
[1646488235563,0.00280427,2639.9,2639.6,0.99522604]
[1646488236567,1.07901108,2640.1,2639.6,0.99522604]
[1646488236765,0.00281476,2639.9,2639.6,0.99522604]
[1646488236967,0.00281476,2639.9,2639.6,0.00292217]
[1646488237792,1.07901108,2640.1,2639.6,0.00292217]
[1646488237991,1.20215678,2639.7,2639.6,0.00292217]
[1646488240095,1.57815678,2639.7,2639.6,0.00292217]
[1646488240494,1.20215678,2639.7,2639.6,0.00292217]
[1646488241100,0.00281326,2639.8,2639.6,0.00292217]
[1646488241343,0.68456842,2640.2,2639.6,0.00292217]
[1646488241344,0.67331705,2640.2,2639.6,0.00292217]
[1646488241541,0.00281326,2639.8,2639.6,0.00170403]
[1646488242338,0.00281326,2639.8,2639.6,1.22683416]
[1646488242542,0.92871146,2640.1,2639.6,1.22683416]
[1646488242846,0.00281325,2639.8,2639.6,1.22683416]
[1646488243243,0.00281325,2639.8,2639.6,0.00170403]
[1646488243744,1.30471146,2640.1,2639.6,0.00170403]
[1646488243943,0.00281347,2639.8,2639.6,0.00170403]
[1646488244985,1.30471146,2640.1,2639.6,0.00170403]
[1646488245184,0.00281347,2639.8,2639.6,0.00170403]
[1646488245386,0.97252039,2639.7,2639.6,0.00170403]
[1646488248306,0.00281346,2639.8,2639.6,0.00170403]
[1646488248491,0.68456919,2640.2,2639.6,0.00170403]
[1646488248492,1.1283732,2640.0,2639.6,0.00170403]
[1646488248736,0.7523732,2639.9,2639.6,0.00170403]
[1646488249138,0.00281346,2639.8,2639.6,0.00170403]
[1646488249436,0.87604254,2639.7,2639.6,0.00170403]
[1646488249839,1.63087486,2639.7,2639.6,0.00170403]
[1646488251841,1.63087486,2639.7,2639.6,0.78172396]
[1646488252342,1.63087486,2639.7,2639.6,0.00170403]
[1646488257042,0.75483232,2639.7,2639.6,0.00170403]
[1646488257441,0.00300998,2639.8,2639.6,0.00170403]
[1646488258043,0.75483232,2640.0,2639.6,0.00170403]
[1646488258246,0.93528861,2639.9,2639.6,0.00170403]
[1646488258444,0.75784228,2639.8,2639.6,0.00170403]
[1646488259247,0.75483232,2639.8,2639.6,3.50170403]
[1646488259449,0.75483232,2639.8,2639.7,0.78001993]
[1646488259647,0.75784228,2639.8,2639.7,0.78001993]
[1646488259850,0.75784228,2639.8,2639.6,0.00170403]
[1646488260092,0.00300996,2639.8,2639.6,3.50170403]
[1646488260292,0.00300996,2639.8,2639.7,0.78001993]
[1646488260492,0.75716762,2640.1,2639.7,4.82501993]
[1646488260796,0.75716762,2640.1,2639.9,1.03022496]
[1646488260995,0.01203804,2640.2,2640.0,4.82501993]
[1646488261193,0.01203804,2640.2,2640.1,0.78001993]
[1646488261395,0.01203804,2640.2,2640.1,4.28001993]
[1646488261596,0.76948211,2640.2,2640.1,4.28001993]
[1646488261896,0.75744407,2640.2,2640.1,4.28001993]
[1646488262395,0.00194591,2640.3,2640.1,4.28001993]
[1646488262595,0.00194591,2640.3,2640.2,0.78001993]
[1646488262996,0.75744407,2640.4,2640.2,0.77371657]
[1646488263197,0.00194591,2640.3,2639.9,4.53022496]
[1646488264246,1.49618268,2640.9,2639.9,4.53022496]
[1646488264447,0.00194591,2640.2,2639.9,4.53022496]
[1646488264646,0.00194591,2640.2,2640.0,1.09683722]
[1646488264849,0.00194591,2640.2,2640.1,3.5]
[1646488265247,2.00048633,2640.9,2640.1,3.5]
[1646488265447,0.43164388,2640.9,2640.1,4.5]
[1646488265648,0.00299595,2640.3,2640.2,0.545]
[1646488265848,0.00299595,2640.3,2640.2,4.045]
[1646488266053,0.00299595,2640.3,2640.2,17.1426]
[1646488266352,0.00299595,2640.3,2640.2,19.84034464]
[1646488266551,1.04450383,2641.2,2640.2,19.1426]
[1646488266850,0.01198185,2640.8,2640.4,11.906]
[1646488267054,0.01198185,2640.8,2640.5,4.045]
[1646488267502,0.01198185,2640.8,2640.5,5.045]
[1646488267696,0.00130221,2641.4,2640.5,5.045]
[1646488267896,0.88225123,2641.4,2640.6,1.12060807]
[1646488268096,0.00299575,2640.8,2640.7,4.045]
[1646488268296,0.00299575,2640.8,2640.7,0.545]
[1646488268499,0.00299575,2640.8,2640.7,4.045]
[1646488268898,0.88225123,2641.4,2640.7,4.045]
[1646488269298,0.00301218,2640.9,2640.7,4.045]
[1646488269599,0.00301218,2640.9,2640.7,0.545]
[1646488270199,0.94989483,2641.0,2640.7,0.545]
[1646488270400,0.0029133,2640.9,2640.7,0.545]
[1646488271252,0.0029133,2640.9,2640.8,1.0]
[1646488271441,0.00130221,2641.6,2640.7,0.545]
[1646488271642,0.0029133,2640.9,2640.7,0.545]
[1646488272646,1.22906485,2641.2,2640.7,0.545]
[1646488272845,0.0029133,2640.9,2640.7,0.545]
[1646488273045,0.0029133,2640.9,2640.7,4.045]
[1646488273849,1.22906485,2641.2,2640.7,4.045]
[1646488274046,0.0028047,2640.9,2640.7,4.045]
[1646488274247,0.0028047,2640.9,2640.8,3.5]
[1646488274446,0.0028047,2640.9,2640.7,0.545]
[1646488274647,0.01121713,2641.3,2641.0,4.453e-05]
[1646488275093,0.00130221,2641.9,2641.0,4.453e-05]
[1646488275291,0.01121713,2641.3,2641.0,1.13293099]
[1646488275493,0.01121713,2641.3,2641.0,4.453e-05]
[1646488276093,0.00130221,2641.6,2641.0,4.453e-05]
[1646488276292,0.37730221,2641.7,2641.0,4.453e-05]
[1646488276494,0.00194327,2641.3,2641.0,4.453e-05]
[1646488276893,0.00194327,2641.3,2641.1,1.03528765]
[1646488277293,0.00130221,2641.9,2641.1,1.03528765]
[1646488277596,0.00282045,2641.3,2641.1,1.03528765]
[1646488278498,0.01128012,2641.7,2641.2,3.5]
[1646488278737,0.00130221,2641.9,2641.2,3.5]
[1646488279642,0.00130221,2641.9,2641.5,1.19414016]
[1646488279842,1.22175763,2642.0,2641.5,1.19414016]
[1646488280043,0.00194366,2641.7,2641.5,1.19414016]
[1646488280243,0.00194366,2641.7,2641.2,4.045]
[1646488280441,0.00194366,2641.7,2641.2,0.545]
[1646488280843,1.22305984,2642.0,2641.2,0.545]
[1646488281046,1.22305984,2642.0,2641.3,3.5]
[1646488281244,0.00301439,2641.6,2641.4,2.17476252]
[1646488282245,0.376,2642.5,2641.4,2.71976252]
[1646488282246,0.37730221,2642.5,2641.4,2.71976252]
[1646488282499,0.00301437,2641.6,2641.4,6.21976252]
[1646488282693,0.00301437,2641.6,2641.4,2.71976252]
[1646488283092,0.00301437,2641.6,2641.5,3.5]
[1646488283294,1.01094521,2642.0,2641.5,4.045]
[1646488283495,0.00130221,2642.6,2641.5,4.045]
[1646488283695,0.00301437,2641.6,2641.5,4.045]
[1646488284199,0.00301437,2641.6,2641.5,15.951]
[1646488284597,0.89172898,2642.3,2641.8,0.97984167]
[1646488284796,0.01205558,2642.1,2641.8,0.97984167]
[1646488285197,0.01205558,2642.1,2641.7,0.545]
[1646488285802,0.89303119,2642.3,2641.7,0.545]
[1646488286001,0.75113734,2642.2,2641.7,0.545]
[1646488286238,0.0029577,2642.0,2641.7,0.545]
[1646488287043,0.75113734,2642.2,2641.7,0.545]
[1646488287243,0.00295771,2642.0,2641.7,0.545]
[1646488288144,1.12713734,2642.2,2641.3,0.1892]
[1646488288347,1.12843955,2642.1,2641.2,2.4659]
[1646488288548,0.75399603,2642.0,2641.2,2.4659]
[1646488288745,0.75529824,2642.0,2641.2,2.4659]
[1646488288947,0.00425992,2642.0,2641.1,4.444]
[1646488289146,0.99703634,2641.5,2641.1,4.444]
[1646488289351,0.99703634,2641.5,2641.1,2.9291]
[1646488290000,0.99703634,2641.5,2641.0,2.42558454]
[1646488290194,0.00280267,2641.7,2641.0,2.42558454]
[1646488290595,0.376,2641.9,2641.0,2.23638454]
[1646488290793,0.00280278,2641.4,2641.0,2.23638454]
[1646488291396,0.00280278,2641.4,2641.0,3.23638454]
[1646488291795,0.00130221,2641.8,2641.0,3.23638454]
[1646488291997,0.0112095,2641.7,2641.4,1.06576091]
[1646488292994,0.87510322,2641.9,2641.4,1.06576091]
[1646488293195,0.00282285,2641.7,2641.4,1.06576091]
[1646488293844,0.00282285,2641.7,2641.5,3.5]
[1646488294246,0.376,2642.4,2641.5,3.5]
[1646488294444,0.00130221,2642.3,2641.5,3.5]
[1646488294646,0.00282285,2641.7,2641.5,3.5]
[1646488294847,0.01128969,2642.1,2641.8,4.411e-05]
[1646488295445,0.00130221,2642.8,2641.8,4.411e-05]
[1646488295645,0.376,2642.7,2642.0,1.17694798]
[1646488295846,1.49442454,2642.4,2642.0,1.17694798]
[1646488296047,0.75228481,2642.3,2642.0,1.17694798]
[1646488296245,0.376,2642.6,2642.0,1.17694798]
[1646488296447,0.75222657,2642.5,2642.0,1.17694798]
[1646488296646,0.75222657,2642.4,2642.0,1.17694798]
[1646488296848,0.75222657,2642.3,2642.0,1.17694798]
[1646488297046,0.9862672,2642.6,2642.0,1.17694798]
[1646488297249,0.75265533,2642.5,2642.0,1.17694798]
[1646488298894,0.75265533,2642.5,2642.2,0.01547179]
[1646488299094,0.00130221,2642.4,2642.2,0.01547179]
[1646488299294,0.00281966,2642.4,2642.2,0.01547179]
[1646488299694,1.13147499,2642.4,2642.2,0.01547179]
[1646488299897,1.12865533,2642.3,2642.2,0.01547179]
[1646488303150,0.75265533,2642.3,2642.2,0.01547179]
[1646488303550,0.75265533,2642.3,2642.1,0.06061694]
[1646488304149,0.75265533,2642.2,2642.1,0.06061694]
[1646488304350,0.00281024,2642.4,2642.1,0.06061694]
[1646488304752,0.75546557,2642.4,2642.1,0.06061694]
[1646488305001,0.75265533,2642.3,2642.1,0.06061694]
[1646488305196,0.75265533,2642.2,2642.1,0.06061694]
[1646488305492,0.75265533,2642.3,2642.1,0.06061694]
[1646488305694,0.75265533,2642.2,2642.1,0.06061694]
[1646488306093,0.00130221,2642.6,2642.1,3.56061694]
[1646488306094,0.75265533,2642.6,2642.1,3.56061694]
[1646488306293,0.75265533,2642.5,2642.1,3.56061694]
[1646488306497,0.00281027,2642.3,2642.1,0.06061694]
[1646488306693,0.7554656,2642.3,2642.1,0.06061694]
[1646488306893,0.75265533,2642.2,2642.1,0.06061694]
[1646488307094,0.75265533,2642.2,2642.1,0.84367871]
[1646488307296,0.00281027,2642.3,2642.1,0.84367871]
[1646488307499,0.00130221,2642.6,2642.1,0.84367871]
[1646488307704,0.00282124,2642.3,2642.1,0.06061694]
[1646488308002,0.00282124,2642.3,2642.2,0.78277668]
[1646488308202,0.7598505,2642.3,2642.1,0.06061694]
[1646488308746,0.75702926,2642.3,2642.1,0.06061694]
[1646488309148,1.13302926,2642.3,2642.1,0.06061694]
[1646488309348,1.13302926,2642.2,2642.1,0.06061694]
[1646488311148,0.75702926,2642.2,2642.1,0.06061694]
[1646488311550,0.00281964,2642.3,2642.1,0.06061694]
[1646488311551,0.7598489,2642.3,2642.1,0.06061694]
[1646488311750,0.75702926,2642.2,2642.1,0.06061694]
[1646488311952,0.7598489,2642.3,2642.1,0.84470896]
[1646488312151,0.75702926,2642.2,2642.1,0.06061694]
[1646488312351,0.68984101,2642.7,2642.1,0.06061694]
[1646488312596,0.00281962,2642.3,2642.1,0.06061694]
[1646488313398,1.20408003,2642.7,2642.1,0.06061694]
[1646488313597,0.00281962,2642.3,2642.1,0.06061694]
[1646488313997,0.00281962,2642.3,2642.2,1.04540325]
[1646488314597,0.00130221,2642.8,2642.2,1.04540325]
[1646488314798,0.6885388,2642.9,2642.2,1.04540325]
[1646488314998,0.00281984,2642.4,2642.2,1.04540325]
[1646488315800,1.06382537,2642.7,2642.2,1.04540325]
[1646488316002,0.00281982,2642.4,2642.2,1.04540325]
[1646488316241,0.00281982,2642.4,2642.1,0.06061694]
[1646488317043,0.68984101,2642.9,2642.1,0.06061694]
[1646488317247,1.07095598,2642.3,2642.1,0.06061694]
[1646488318047,0.00281984,2642.4,2642.1,0.06061694]
[1646488318254,0.68984101,2642.9,2642.1,0.06061694]
[1646488318447,0.00281982,2642.3,2642.1,0.06061694]
[1646488318649,0.00281982,2642.3,2642.0,0.545]
[1646488319450,1.16065566,2642.4,2642.0,0.545]
[1646488319649,0.00281984,2642.3,2642.0,0.545]
[1646488320501,0.00281984,2642.3,2642.1,3.5]
[1646488320696,0.00130221,2642.8,2642.1,3.5]
[1646488320899,0.00281984,2642.3,2642.1,3.5]
[1646488321099,0.01127766,2642.7,2642.3,4.00004324]
[1646488321298,0.01127766,2642.7,2642.3,7.50004324]
[1646488321898,0.00130221,2642.8,2642.3,7.50004324]
[1646488322099,0.6885388,2643.0,2642.3,7.50004324]
[1646488322498,1.19446608,2642.8,2642.3,7.50004324]
[1646488322700,1.19446608,2642.8,2642.3,4.324e-05]
[1646488323298,0.68984101,2642.9,2642.3,4.324e-05]
[1646488323502,0.6885388,2642.9,2642.3,4.324e-05]
[1646488323739,0.6885388,2643.0,2642.3,0.01550581]
[1646488323942,0.6885388,2643.1,2642.3,0.01550581]
[1646488324340,0.68984101,2643.2,2642.3,0.56050581]
[1646488324539,0.68984101,2643.2,2642.4,3.5]
[1646488324739,0.95055608,2643.1,2642.4,3.5]
[1646488324940,0.68984101,2643.2,2642.6,1.03303266]
[1646488325144,0.00130221,2643.3,2642.8,0.376]
[1646488325341,0.00130221,2643.6,2642.9,4.045]
[1646488325543,0.6885388,2643.7,2642.9,4.421]
[1646488325544,0.68984101,2643.7,2642.9,4.421]
[1646488325742,0.68984101,2643.7,2642.9,16.951]
[1646488325743,0.00130221,2643.7,2642.9,16.951]
[1646488325950,0.01205363,2643.3,2642.9,5.421]
[1646488326147,0.01205363,2643.3,2643.2,1.08299596]
[1646488326345,0.01205363,2643.3,2643.2,1.62799596]
[1646488326545,0.99684412,2643.7,2643.2,0.545]
[1646488326745,0.99554191,2643.7,2643.2,0.545]
[1646488326947,0.01205306,2643.6,2643.2,0.545]
[1646488327345,0.01205306,2643.6,2643.3,3.5]
[1646488327603,0.01205306,2643.6,2643.3,0.545]
[1646488327806,0.00130221,2643.8,2643.3,0.545]
[1646488328006,0.6885388,2644.0,2643.3,0.545]
[1646488328206,0.00301359,2643.5,2643.4,1.20455147]
[1646488329007,0.00130221,2643.9,2643.4,1.20455147]
[1646488329209,1.6562085,2644.0,2643.3,0.545]
[1646488329210,0.00301357,2643.6,2643.3,0.545]
[1646488329811,0.00301357,2643.6,2643.1,1.03030525]
[1646488330008,0.00301357,2643.6,2643.1,0.03030525]
[1646488330207,0.68984101,2643.9,2643.1,0.03030525]
[1646488330208,1.08874912,2643.3,2643.1,0.03030525]
[1646488331742,0.00276476,2643.3,2643.1,0.03030525]
[1646488332040,0.00276476,2643.3,2643.1,0.57530525]
[1646488332644,0.75711783,2643.6,2643.1,0.57530525]
[1646488332845,0.00276476,2643.3,2643.1,0.57530525]
[1646488333744,0.75581562,2643.5,2643.1,0.57530525]
[1646488334144,0.00281321,2643.3,2643.1,0.57530525]
[1646488334344,0.00281321,2643.3,2643.2,0.01481353]
[1646488335002,0.75581562,2643.5,2643.2,0.01481353]
[1646488335292,0.00281319,2643.4,2643.2,0.01481353]
[1646488335692,0.75862881,2643.4,2643.2,0.01481353]
[1646488336298,0.75581562,2643.4,2643.2,0.01481353]
[1646488336500,0.7586288,2643.4,2643.2,0.01481353]
[1646488337199,0.00281318,2643.4,2643.2,0.01481353]
[1646488337398,0.75538403,2643.5,2643.2,1.08720783]
[1646488337600,0.00282011,2643.4,2643.2,1.08720783]
[1646488337798,0.00282011,2643.4,2643.2,0.01481353]
[1646488338599,0.75538403,2643.5,2643.2,0.01481353]
[1646488338843,0.00282011,2643.4,2643.3,0.03043636]
[1646488339051,4.41478315,2643.4,2643.3,0.03043636]
[1646488339345,1.13420414,2643.4,2643.3,0.03043636]
[1646488339544,1.13420414,2643.4,2642.4,0.25]
[1646488339545,0.376,2643.2,2642.4,0.25]
[1646488339744,3.0,2643.3,2642.3,4.324e-05]
[1646488339745,0.376,2643.0,2642.3,4.324e-05]
[1646488339948,4.02334666,2643.1,2642.3,4.324e-05]
[1646488339949,0.376,2642.8,2642.3,0.7813332]
[1646488340148,0.75538403,2642.7,2642.3,4.324e-05]
[1646488340350,1.13138403,2642.7,2642.3,4.324e-05]
[1646488340550,0.00130221,2642.8,2642.3,4.324e-05]
[1646488340551,0.376,2642.6,2642.3,4.324e-05]
[1646488341349,0.37881937,2642.6,2642.3,4.324e-05]
[1646488342150,0.376,2642.6,2642.3,4.324e-05]
[1646488342602,0.00281938,2642.6,2642.3,4.324e-05]
[1646488342802,0.37881938,2642.6,2642.3,4.324e-05]
[1646488343404,0.376,2642.6,2642.3,4.324e-05]
[1646488343607,0.00281938,2642.6,2642.3,4.324e-05]
[1646488344003,0.32881938,2642.8,2642.3,4.324e-05]
[1646488344206,0.75555021,2642.7,2642.3,4.324e-05]
[1646488344406,0.75685242,2642.7,2642.5,0.01293628]
[1646488344605,0.95959301,2643.0,2642.5,0.89973743]
[1646488344806,0.75600039,2642.9,2642.5,0.89973743]
[1646488345405,0.75600039,2642.9,2642.6,0.78165711]
[1646488345605,0.376,2643.1,2642.6,0.78165711]
[1646488345806,0.75621246,2643.0,2642.6,0.78165711]
[1646488346948,1.63197529,2643.0,2642.6,0.78165711]
[1646488347145,0.75621246,2642.9,2642.6,0.78165711]
[1646488347547,1.13221246,2642.9,2642.6,0.78165711]
[1646488347748,1.13221246,2642.8,2642.5,0.01293628]
[1646488347949,0.376,2642.8,2642.5,0.01293628]
[1646488348147,0.75667899,2642.7,2642.5,0.01293628]
[1646488348748,0.89513898,2642.6,2642.5,0.01293628]
[1646488348947,0.89513898,2642.6,2642.5,0.00020028]
[1646488348948,1.65197496,2642.6,2642.5,0.00020028]
[1646488349147,0.75683598,2642.6,2642.5,0.00020028]
[1646488349348,0.376,2643.0,2642.7,0.01231097]
[1646488349551,1.13292273,2642.9,2642.7,0.01231097]
[1646488349850,0.75692273,2642.8,2642.7,0.01231097]
[1646488350299,1.92360532,2642.8,2642.7,0.01231097]
[1646488353847,0.75692273,2642.8,2642.7,0.01231097]
[1646488354049,0.75692273,2642.8,2642.7,0.02685708]
[1646488354247,0.75692273,2643.0,2642.7,0.02685708]
[1646488354447,0.0029144,2642.9,2642.7,0.02685708]
[1646488355049,1.74337395,2642.9,2642.7,0.02685708]
[1646488355248,0.75692273,2642.8,2642.7,0.02685708]
[1646488358698,0.75692273,2642.8,2642.7,0.0254071]
[1646488361348,1.13292273,2642.8,2642.7,0.0254071]
[1646488362146,1.13141776,2642.8,2642.7,0.0254071]
[1646488363653,1.13141776,2642.8,2642.7,0.03753372]
[1646488365305,0.75541776,2642.8,2642.7,0.03753372]
[1646488368110,0.75541776,2642.8,2642.7,0.02498967]
[1646488368949,0.75541776,2642.8,2642.7,0.03268399]
[1646488369148,0.75541776,2642.8,2642.7,0.00810849]
[1646488369547,0.00399934,2642.9,2642.7,0.00810849]
[1646488369748,0.00098316,2642.9,2642.7,0.00810849]
[1646488370148,0.00399934,2642.9,2642.7,0.00810849]
[1646488370548,0.00399934,2642.9,2642.8,0.92521678]
[1646488371048,0.00098316,2642.9,2642.8,0.92521678]
[1646488371461,0.22999929,2643.2,2642.7,0.00810849]
[1646488372905,0.22999929,2643.2,2642.6,0.84762281]
[1646488374501,0.22999929,2643.2,2642.3,4.324e-05]
[1646488374902,0.00193475,2643.1,2642.3,4.324e-05]
[1646488375402,0.69047355,2643.1,2642.3,4.324e-05]
[1646488375602,1.13627264,2642.9,2642.3,4.324e-05]
[1646488377657,1.36627193,2642.9,2642.3,4.324e-05]
[1646488378255,0.22999929,2642.9,2642.3,4.324e-05]
[1646488378659,0.22999929,2643.0,2642.3,4.324e-05]
[1646488379659,1.44297205,2642.9,2642.3,4.324e-05]
[1646488381916,1.44297205,2642.9,2642.3,0.69535918]
[1646488382314,0.75920197,2642.8,2642.3,0.69535918]
[1646488382514,0.9645832,2642.5,2642.3,0.69535918]
[1646488382717,0.9645832,2642.5,2642.3,4.324e-05]
[1646488382718,4.25920197,2642.4,2642.3,4.324e-05]
[1646488383121,2.67774006,2642.4,2642.3,4.324e-05]
[1646488383317,1.67774006,2642.4,2642.3,4.324e-05]
[1646488383517,2.67774006,2642.4,2642.3,0.77578402]
[1646488383750,1.67774006,2642.4,2642.3,0.77578402]
[1646488383959,0.22999929,2642.2,2641.8,4.411e-05]
[1646488384150,4.42531928,2642.2,2641.8,4.411e-05]
[1646488384348,0.92531928,2642.2,2641.8,4.411e-05]
[1646488384548,1.92531928,2642.2,2641.8,4.411e-05]
[1646488384749,0.92531928,2642.2,2641.8,4.411e-05]
[1646488384949,0.22999929,2642.0,2641.8,4.411e-05]
[1646488385449,0.92531928,2642.0,2641.8,4.411e-05]
[1646488385651,4.27499929,2641.9,2641.8,4.411e-05]
[1646488385850,5.27499929,2641.9,2641.8,4.411e-05]
[1646488388511,8.4962707,2641.9,2641.8,4.411e-05]
[1646488388710,9.62440668,2641.9,2641.8,4.411e-05]
[1646488388910,6.40313527,2641.9,2641.8,4.411e-05]
[1646488389116,0.22999929,2641.5,2641.1,0.20004411]
[1646488389312,0.22999929,2641.5,2641.0,1.08834957]
[1646488389313,0.22999929,2641.5,2641.0,1.09117469]
[1646488390116,0.22999929,2641.9,2641.0,1.09113016]
[1646488390316,0.22999929,2641.9,2641.0,1.08830504]
[1646488390514,0.22999929,2641.9,2641.0,1.09112644]
[1646488390814,0.376,2641.6,2641.0,1.09112644]
[1646488391446,0.376,2641.6,2641.0,1.08830504]
[1646488391650,0.376,2641.6,2641.0,1.09112329]
[1646488391846,0.376,2641.6,2641.0,0.00281825]
[1646488392347,6.876,2641.6,2641.0,0.00281825]
[1646488392752,7.876,2641.6,2640.4,0.69531594]
[1646488392950,7.876,2641.6,2641.0,0.00281825]
[1646488393154,0.376,2641.4,2641.0,0.00281825]
[1646488393351,3.876,2641.4,2641.0,0.00281825]
[1646488393754,4.876,2641.4,2641.0,0.00281825]
[1646488393953,4.876,2641.4,2640.3,0.25]
[1646488394155,4.876,2641.4,2641.0,0.00282146]
[1646488394156,7.876,2641.4,2641.0,0.00282146]
[1646488394554,9.3685997,2641.4,2641.0,0.00282146]
[1646488394755,11.906,2641.3,2641.0,0.00282146]
[1646488395016,0.376,2641.0,2640.3,0.25]
[1646488395204,4.21518599,2641.1,2639.8,0.99503594]
[1646488395205,0.376,2640.8,2639.8,0.99503594]
[1646488395403,5.56867542,2640.7,2639.8,0.99503594]
[1646488395604,2.06867542,2640.7,2639.8,0.00096]
[1646488395806,3.06867542,2640.7,2639.6,0.00096]
[1646488396004,2.06867542,2640.7,2639.6,0.00096]
[1646488396205,3.06867542,2640.7,2639.6,0.00096]
[1646488396406,2.06867542,2640.7,2639.6,0.00096]